Cogmind - Beta 9.6 @@@ ROGUE MODE // 2020.08.29 @ 14:47:16 Player: scoobysnack1 Result: Smashed by cave-in Performance ------------- Evolutions (0) 0 Regions Visited (0) 0 Robots Destroyed (9) 45 Value Destroyed (50) 50 Prototype IDs (0) 0 Alien Tech Used (0) 0 Bonus (0) 0 TOTAL SCORE: 95 Bonus ------- None Cogmind --------- Core Integrity 0/250 Matter 294/300 Energy 100/100 System Corruption 19% Temperature Cool (0) Movement Core (50) Location -11/Scrapyard Parts ------- > --- POWER (1) -------- (None) > --- PROPULSION (2) --- (None) > --- UTILITY (2) ------ (None) > --- WEAPON (2) ------- (None) > --- INVENTORY (4) ---- Light Ion Engine Medium Laser Assault Rifle Peak State ------------ > --- POWER ------------ Light Ion Engine > --- PROPULSION ------- Aluminum Leg Aluminum Leg > --- UTILITY ---------- Small Storage Unit Improved Terrain Scanner > --- WEAPON ----------- EM Pulse Gun Medium Laser > --- INVENTORY -------- Light Ion Engine Assault Rifle [Rating: 8] Favorites ----------- Power Light Ion Engine Engine Light Ion Engine Propulsion Aluminum Leg Leg Aluminum Leg Utility Improved Terrain Scanner Device Improved Terrain Scanner Storage Small Storage Unit Processor Seismic Analyzer Weapon EM Pulse Gun Energy Gun EM Pulse Gun Special Weapon Mining Laser Build | -11 ------- Run | Scr Slots Evolved . | . Power . | . Propulsion . | . Utility . | . Weapon . | . Parts Attached 11 | 11 Power 3 | 3 Engine 3 | 3 Core . | . Reactor . | . Propulsion 2 | 2 Treads . | . Leg 2 | 2 Wheel . | . Hover . | . Flight . | . Utility 3 | 3 Device 1 | 1 Storage 1 | 1 Processor 1 | 1 Hackware . | . Protection . | . Artifact . | . Weapon 3 | 3 Energy Gun 2 | 2 Energy Cannon . | . Ballistic Gun . | . Ballistic Cannon . | . Launcher . | . Special Weapon 1 | 1 Impact Weapon . | . Slashing Weapon . | . Piercing Weapon . | . Special Melee Weapon . | . Unidentified Prototypes . | . Parts Lost 8 | 8 Power 2 | 2 Propulsion 2 | 2 Utility 2 | 2 Weapon 2 | 2 Highest Loss Streak 5 | 5 Average Slot Usage (%) . | . Naked Turns . | . Heaviest Build 12 | 12 Greatest Support 10 | 10 Greatest Overweight (x) 1 | 1 Average Overweight (x) . | . Largest Inventory Capacity 6 | 6 Average Capacity 4 | 4 Most Carried 4 | 4 Average Carried 3 | 3 Final Capacity 4 | 4 Final Carried 3 | 3 Class Distribution -------------------- None Dominant Class ---------------- None Resources | -11 ----------- Run | Scr Matter Collected 300 | 300 Remotely . | . Salvage Created 283 | 283 Parts 20 | 20 Haulers Intercepted . | . Recyclers Shooed 1 | 1 Parts Field Recycled . | . Retrieved Matter . | . Parts Self-Destructed . | . Prevented . | . Kills | -11 ------- Run | Scr Combat Hostiles Destroyed . | . Classes Destroyed 3 | 3 Worker 2 | 2 Tunneler 6 | 6 Recycler 1 | 1 Best Kill Streak 3 | 3 Combat Bots Only . | . Max Kills in Single Turn 1 | 1 Gunslinging . | . Exploded . | . Melee . | . Uniques/NPCs Destroyed . | . Combat | -11 -------- Run | Scr Damage Taken 862 | 862 Core 252 | 252 Absorbed by Shields . | . Core Remaining (%) . | . Volleys Fired 85 | 85 Largest 2 | 2 Hottest 140 | 140 Shots Fired 87 | 87 Gun 35 | 35 Cannon . | . Launcher . | . Special 52 | 52 Kinetic . | . Thermal 52 | 52 Explosive . | . Electromagnetic 35 | 35 Robot Hit Streak 3 | 3 Robot Miss Streak 3 | 3 Penetration Max . | . Secondary Targets . | . Shots Hit Robots 17 | 17 Core Hits 10 | 10 Critical Hits . | . Critical Kills . | . Critical Parts Destroyed . | . Melee Attacks . | . Impact . | . Slashing . | . Piercing . | . Sneak Attacks . | . Combat Hostiles . | . Follow-up Attacks . | . Damage Inflicted 294 | 294 Guns 248 | 248 Cannons . | . Explosions 46 | 46 Melee . | . Ramming . | . Kinetic . | . Thermal 46 | 46 Explosive . | . Electromagnetic 248 | 248 Impact . | . Slashing . | . Piercing . | . Highest Corruption 19 | 19 Average Corruption 15 | 15 Corruption Purged . | . Effects 10 | 10 Message Errors 1 | 1 Matter Fused 2 | 2 Heat Flow Errors 2 | 2 Data Loss (major) 1 | 1 Misdirections 1 | 1 Targeting Errors 3 | 3 Overload Shots . | . Overflow Damage . | . Projectiles . | . Explosions . | . Melee . | . Knockbacks . | . Impact . | . Kinetic . | . Secondary . | . Self-Inflicted Damage 28 | 28 Shots 1 | 1 Rammed . | . Targets Rammed . | . Kicked . | . Crushed . | . Highest Temperature 261 | 261 Average Temperature 51 | 51 Received Heat Transfer . | . Siege Activations . | . Robots Corrupted . | . Combat Hostiles . | . Parts Fried . | . Impact Corruptions . | . Robots Melted . | . Combat Hostiles . | . Parts Melted . | . Heat Transferred 50 | 50 Parts Sabotaged . | . Parts Stolen . | . Parts Stripped . | . Power Chain Reactions 1 | 1 Missiles Intercepted . | . Alert | -11 ------- Run | Scr Peak Influence 25 | 25 Average Influence 2 | 2 Maximum Alert Level . | . Low Security (%) 100 | 100 Level 1 . | . Level 2 . | . Level 3 . | . Level 4 . | . Level 5 . | . High Security . | . Max Security . | . Squads Dispatched . | . Investigation . | . Extermination . | . Reinforcement . | . Assault . | . Garrison . | . Intercept . | . Construction Impeded . | . Haulers Reinforced . | . Stealth | -11 --------- Run | Scr Distress Signals . | . Communications Jammed . | . Distress Signals . | . Times Spotted . | . Peak Tracking Total . | . Tactical Retreats . | . Traps | -11 ------- Run | Scr Traps Triggered . | . Indirectly . | . Trap Hack Attempts . | . Triggered . | . Disarmed . | . Reprogrammed . | . Reused . | . Traps Extracted . | . Installed . | . Triggered . | . Machines | -11 ---------- Run | Scr Machines Disabled . | . Max in Single Turn . | . Machines Sabotaged . | . Garrisons Compromised . | . Overloaded Fab Kills . | . Fab Network Shutdowns . | . Hacking | -11 --------- Run | Scr Machines Accessed . | . Terminals . | . Fabricators . | . Repair Stations . | . Recycling Units . | . Scanalyzers . | . Garrison Access . | . Total Hacks . | . Successful . | . Failed . | . Catastrophic . | . Database Lockouts . | . Manual . | . Terminals . | . Fabricators . | . Repair Stations . | . Recycling Units . | . Scanalyzers . | . Garrison Access . | . Terminal Hacks . | . Fabricator Hacks . | . Repair Station Hacks . | . Recycling Unit Hacks . | . Scanalyzer . | . Garrison Access Hacks . | . Unauthorized Hacks . | . Terminals . | . Fabricators . | . Repair Stations . | . Recycling Units . | . Scanalyzers . | . Garrison Access . | . Data Cores Recovered . | . Used . | . Hacking Detections . | . Full Trace Events . | . Feedback Events . | . Feedback Blocked . | . Robot Schematics Acquired . | . Robots Built . | . Matter . | . Time . | . Total Robot Build Rating . | . Part Schematics Acquired . | . Parts Built . | . Matter . | . Time . | . Total Part Build Rating . | . Parts Repaired . | . Time . | . Parts Recycled . | . Recycled Matter . | . Retrieved Matter . | . Retrieved Components . | . Parts Scanalyzed . | . Part Schematics Acquired . | . Parts Damaged . | . Bothacking | -11 ------------ Run | Scr Used RIF Installer . | . Robots Hacked . | . Non-combat . | . Combat . | . Robot Hacks Applied . | . Relay Couplers Released . | . Robots Rewired . | . Allies Hacked . | . Hacks Repelled . | . Allies | -11 -------- Run | Scr Total Allies . | . Largest Group . | . Highest-Rated Group . | . Highest-Rated Ally . | . Total Orders . | . Ally Attacks . | . Total Damage . | . Kills . | . Allies Corrupted . | . Allies Melted . | . Intel | -11 ------- Run | Scr Robot Analysis Total . | . Derelict Logs Recovered . | . Drone Launches . | . Drone Recoveries . | . Exploration | -11 ------------- Run | Scr Turns Passed 3900 | 3900 Spaces Moved 825 | 825 Core 5 | 5 Treads . | . Legs 820 | 820 Wheels . | . Hover . | . Flight . | . Fastest Speed 50 | 50 Average Speed 120 | 120 Slowest Speed 150 | 150 Overloaded Moves . | . Propulsion Burnouts . | . Robots Hopped . | . Cave-ins Triggered 7 | 7 Exploration Rate (%) 69 | 69 Regions Visited . Branch Regions . Pre-discovered Areas . | . Known Exits Taken . | . Unknown Exits Taken . | . Scrap Searched . | . Spaces Dug 24 | 24 Terrain Destroyed 34 | 34 Melee . | . Projectile 28 | 28 AOE 6 | 6 Actions | -11 --------- Run | Scr Total 3538 | 3538 Wait 2612 | 2612 Move 824 | 824 Hop . | . Pick Up 3 | 3 Fast Attach 8 | 8 Attach 2 | 2 Detach 1 | 1 Swap 1 | 1 Drop 1 | 1 Fire 85 | 85 Melee . | . Ram . | . Kick . | . Crush . | . Escape Stasis 1 | 1 Rewire . | . Trap . | . Miscellaneous . | . Route ------- -11/Scrapyard (discovered 1 exit: [*Mat]) History --------- Turn | Location | Event 19 | -11/Scrapyard | Discovered new exit (range 15) 3761 | -11/Scrapyard | Crushed by falling debris 3761 | -11/Scrapyard | System corruption reached 10% 3792 | -11/Scrapyard | Lost 3 parts (1p1n1u) 3840 | -11/Scrapyard | Crushed by falling debris 3843 | -11/Scrapyard | Crushed by falling debris 3846 | -11/Scrapyard | Crushed by falling debris 3851 | -11/Scrapyard | Crushed by falling debris 3851 | -11/Scrapyard | Core integrity fell below 50% 3877 | -11/Scrapyard | Lost 5 parts (1p1n1u2w) 3899 | -11/Scrapyard | Crushed by falling debris 3899 | -11/Scrapyard | Core integrity fell below 20% 3902 | -11/Scrapyard | Crushed by falling debris 3902 | -11/Scrapyard | Smashed by cave-in Last Messages --------------- 03840_ System corrupted by crushing effect (+1). 03840_ EM Pulse Gun destroyed. 03840_ System corrupted by crushing effect (+1). 03840_ Aluminum Leg destroyed. 03840_ System corrupted by crushing effect (+2). 03842_ System corrupted: Heat flow error (+141). 03843_ The unstable cave ceiling collapses. 03843_ Crushed by falling debris. 03846_ The unstable cave ceiling collapses. 03846_ Crushed by falling debris. 03846_ Lgt. Ion Engine destroyed. 03846_ System corrupted by crushing effect (+1). 03851_ The unstable cave ceiling collapses. 03851_ Crushed by falling debris. 03862_ System corrupted: Heat flow error (+286). 03879_ System corrupted: Matter fused (-6). 03899_ The unstable cave ceiling collapses. 03899_ Crushed by falling debris. 03902_ The unstable cave ceiling collapses. 03902_ Crushed by falling debris. Map ----- +----------------------------------------------------+ | ??????#?#?#?# #### ? | | ?????##???### # ? # | | ??? ?######?############ ###?###?#? | | ???????#?##?############ #?###?#?# | | ????#?#?#?###??###??#### ##????##?? | | ?????#??###??######??### #?#####?## | | ????#???######?#?#??#### #####????? | | ?????#?###??##??###?#### ######??## | | ?????????#?#????####### #??##?###? | | ????????#??##?#??####?## ##??#??#?? | | ????????##?##??####?#?## #####?#?? | | ????????#?####?######### #?##??? | | ????????????#??######## #???### | | ???????????????#?######### # ##???? | | ??????????##????######?### ###????# | | ????????????#?#?#?#?##########??##? | | ????????????#?#??#???##?# ##?###### | | ??????????????##???##???# ##?#?#### | | ??????????#?#?###????#?####??#?#?## | | ???????????##?#?##?##?#?###?##?#??? | | ???????????#???#?##???### ##?#????# | | ?????????????#?#?##???### ##?#??#?# | | ???????????????###???#### #?###?### | | ???????????????#?#???##?# ##?#?##?# | | ????????????????############??##?#? | | ????????????#??##?#??####@#?#???##? | | | | | | | | | | | | | | | | | | | | | | | | | | | | | | | | | | | | | | | | | | | | | | | | | +----------------------------------------------------+ Best States ------------- Heat Dissipation 25 Energy Generation 10 Energy Capacity 125 Matter Stores 300 Matter Capacity 300 Sight Range 16 Terrain Scan Range 16 Terrain Scan Density 60 Evasion (%) 40 Item Schematics ----------------- None Robot Schematics ------------------ None Fabricated ------------ Nothing Alien Tech Used ----------------- None Achievements -------------- System Compromised Unlikely Earthworm Challenges ------------ None Game ------ Seed SalvageNullPurifier Manual? 0 Play Time 00:20:22 Cumulative 8.0 hours Start 2020.08.29 @ 14:36:43 End 2020.08.29 @ 14:47:16 Sessions 0 Manual Loads 0 Difficulty Rogue Special Mode None Game No. 7 Rogue 7 Adventurer 0 Explorer 0 Win Type - Total 0 Types 0/0/0/0/0/0/0 Lore% 3 Gallery% 10 Achievement% 10 Wizard Run 0 Options --------- ASCII 0 Keyboard 0 Movement Numpad Keybinds 0 Fullscreen 1 Font 18/SmallcapsGlow Map View 76x50 Tactical HUD 1 Map Filters NONE Filters NONE Steam 1 RUN: 852f9ec1-7db0-4497-98ff-bd43cf32843d